fUSD/lending_fUSD_20260112
["ID","MTS","AMOUNT","RATE_DAILY","PERIOD"]
[401473835,1768252241482,-500.0,0.00017973,2]
[401473837,1768252241491,-500.0,0.00017973,2]
[401473839,1768252241500,-500.0,0.00017973,2]
[401473841,1768252241510,-500.0,0.00017973,2]
[401473843,1768252241519,-193.4694691,0.00017973,2]
[401473845,1768252241528,-4230.2603109,0.00017981,2]
[401473847,1768252241538,-1172.6056584,0.00017981,2]
[401473849,1768252241550,-178.6163474,0.00017981,2]
[401473851,1768252241560,-44797.5653552,0.00017981,2]
[401473853,1768252241569,-173.7125122,0.00017982,2]
[401473855,1768252241579,-180873.1877548,0.00017982,2]
[401473857,1768252241588,-611.47912123,0.00017989,2]
[401473859,1768252241597,-313.59851479,0.0001799,2]
[401473861,1768252241606,-313.59851479,0.0001799,2]
[401473863,1768252241615,-847.57037788,0.00017999,2]
[401473865,1768252241625,-150.0,0.00017999,2]
[401473867,1768252241634,-227554.33702356,0.00018,2]
[401473869,1768252241643,-273.30071684,0.00018,2]
[401473871,1768252241652,-241.27565583,0.00018,2]
[401473873,1768252241661,-152.17395716,0.00018,2]
[401473875,1768252241670,-285.23983713,0.00018,2]
[401473877,1768252241679,-260.72269576,0.00018,2]
[401473879,1768252241688,-167.21324022,0.00018,2]
[401473881,1768252241698,-150.0,0.00018,2]
[401473883,1768252241707,-150.00000001,0.00018,2]
[401473885,1768252241716,-150.0,0.00018,2]
[401473887,1768252241725,-258.8757006,0.00018,2]
[401473889,1768252241734,-150.0,0.00018,2]
[401473891,1768252241743,-107467.24920596,0.00018,2]
[401473894,1768252241757,-6478.13663379,0.00018,2]
[401473903,1768252241833,-500.0,0.00013753,2]
[401473905,1768252241843,-779.2779985,0.00017786,2]
[401473907,1768252241854,-324.7149346,0.00017786,2]
[401473930,1768252242056,-1.7e-07,0.00017786,2]
[401473933,1768252242072,-1559.96793193,0.00017786,2]
[401473935,1768252242083,-163.10588293,0.000179,2]
[401473938,1768252242095,-1309.4017478,0.000179,2]
[401473940,1768252242105,-7697.1353669,0.00018,2]
[401473942,1768252242115,-265.1286,0.00018,2]
[401474153,1768252245372,-3215.557,0.00016743,2]
[401474154,1768252245429,-1586.2628935,0.00016743,2]
[401474155,1768252245440,-760.9582777,0.00016743,2]
[401474156,1768252245651,-993.2218288,0.00016743,2]
[401474157,1768252245661,-2663.9608652,0.000179,2]
[401474158,1768252245670,-619.82530558,0.000179,2]
[401474159,1768252245680,-6101.99200042,0.00018,2]
[401474161,1768252345272,-361.67685506,0.00012065,2]
[401474162,1768252593567,209.0,9.989e-05,2]
[401474163,1768252594103,209.0,9.989e-05,2]
[401474164,1768252810247,-184.01706027,0.00012065,2]
[401474185,1768253431587,-138.32314494,0.00012065,2]
[401474186,1768253431597,-166.66,0.00013779,2]
[401474187,1768253431606,-40.53466193,0.00014,2]
[401474188,1768253431618,-269.06894373,0.00014,2]
[401474189,1768253431627,-166.66,0.00014069,2]
[401474190,1768253431636,-166.66,0.00014359,2]
[401474191,1768253431646,-1200.0,0.00014619,2]
[401474192,1768253431655,-897.61105627,0.0001462,2]
[401474193,1768253431668,-364.38894373,0.0001462,2]
[401474194,1768253431677,-151.0,0.0001462,2]
[401474195,1768253431687,-152.0,0.0001462,2]
[401474196,1768253431696,-152.0,0.0001462,2]
[401474197,1768253431707,-152.0,0.0001462,2]
[401474198,1768253431716,-152.0,0.0001462,2]
[401474199,1768253431726,-152.0,0.0001462,2]
[401474200,1768253431737,-166.66,0.00014649,2]
[401474201,1768253431747,-1852.42,0.00014699,2]
[401474202,1768253431756,-150.0,0.00014716,2]
[401474203,1768253431765,-200.0,0.00014795,2]
[401474204,1768253431775,-166.66,0.0001494,2]
[401474205,1768253431784,-500.0,0.00014999,2]
[401474206,1768253431793,-500.0,0.00014999,2]
[401474207,1768253431803,-352.96751895,0.00014999,2]
[401474208,1768253431814,-147.03248105,0.00014999,2]
[401474210,1768253431823,-500.0,0.00014999,2]
[401474213,1768253431832,-500.0,0.00014999,2]
[401474216,1768253431842,-500.0,0.00014999,2]
[401474218,1768253431851,-500.0,0.00014999,2]
[401474220,1768253431860,-500.0,0.00014999,2]
[401474223,1768253431869,-500.0,0.00014999,2]
[401474226,1768253431879,-500.0,0.00014999,2]
[401474229,1768253431888,-500.0,0.00014999,2]
[401474232,1768253431897,-500.0,0.00014999,2]
[401474235,1768253431906,-500.0,0.00014999,2]
[401474239,1768253431919,-500.0,0.00014999,2]
[401474241,1768253431928,-500.0,0.00014999,2]
[401474244,1768253431937,-500.0,0.00014999,2]
[401474246,1768253431947,-500.0,0.00014999,2]
[401474248,1768253431956,-370.44764333,0.00014999,2]
[401474250,1768253431968,-196.78379116,0.00014999,2]
[401474252,1768253431977,-500.0,0.00014999,2]
[401474254,1768253431987,-500.0,0.00014999,2]
[401474256,1768253431996,-500.0,0.00014999,2]
[401474258,1768253432007,-500.0,0.00014999,2]
[401474260,1768253432016,-338.69818425,0.00014999,2]
[401474262,1768253432027,-161.30181575,0.00014999,2]
[401474264,1768253432037,-500.0,0.00014999,2]
[401474266,1768253432046,-500.0,0.00014999,2]
[401474268,1768253432056,-505.08291044,0.00014999,2]
[401474270,1768253432065,-500.0,0.00014999,2]
[401474272,1768253432075,-500.0,0.00014999,2]
[401474274,1768253432084,-500.0,0.00014999,2]
[401474276,1768253432093,-361.76104548,0.00014999,2]
[401474278,1768253432105,-138.23895452,0.00014999,2]
[401474280,1768253432114,-500.0,0.00014999,2]
[401474282,1768253432124,-500.0,0.00014999,2]
[401474284,1768253432133,-500.0,0.00014999,2]
[401474286,1768253432143,-1963.34171095,0.00015,2]
[401474288,1768253432152,-1024.20892743,0.00015,2]
[401474290,1768253432163,-3865.55185457,0.00015,2]
[401474292,1768253432173,-1000.0,0.00015149,2]
[401474294,1768253432183,-13199.48655159,0.00015219,2]
[401474297,1768253432198,-532.82685681,0.00015219,2]
[401474299,1768253432208,-1709.73549615,0.00015219,2]
[401474302,1768253432219,-2095.01197596,0.00015219,2]
[401474304,1768253432230,-2238.41975202,0.00015219,2]
[401474381,1768253437653,-162.20402893,0.00015218,2]
[401474382,1768253437666,-444.73688894,0.00015218,2]
[401474383,1768253437676,-85345.13932345,0.00015219,2]
[401474384,1768253437688,-894879.38004402,0.00015219,2]
[401474385,1768253437697,-500.0,0.00015225,2]
[401474386,1768253437708,-150.0,0.00015225,2]
[401474387,1768253437718,-150.0,0.00015225,2]
[401474388,1768253437728,-150.0,0.00015225,2]
[401474389,1768253437740,-150.0,0.00015225,2]
[401474390,1768253437749,-150.0,0.00015225,2]
[401474391,1768253437759,-150.0,0.00015225,2]
[401474392,1768253437768,-424.0,0.00015225,2]
[401474393,1768253437777,-166.66,0.0001523,2]
[401474394,1768253437787,-500.0,0.0001528,2]
[401474395,1768253437796,-150.0,0.0001528,2]
[401474396,1768253437806,-150.0,0.0001528,2]
[401474397,1768253437815,-150.0,0.0001528,2]
[401474398,1768253437824,-424.0,0.0001528,2]
[401474399,1768253437834,-6704.96586498,0.0001532,2]
[401474400,1768253437844,-200.0,0.00015335,2]
[401474401,1768253437853,-200.0,0.00015335,2]
[401474402,1768253437862,-159.0,0.00015335,2]
[401474403,1768253437872,-424.0,0.00015335,2]
[401474404,1768253437882,-424.0,0.00015389,2]
[401474405,1768253437891,-424.0,0.00015444,2]
[401474406,1768253437900,-904.26,0.00015481,2]
[401474407,1768253437909,-998.0,0.00015491,2]
[401474408,1768253437919,-424.0,0.00015499,2]
[401474409,1768253437928,-10000.0,0.000155,2]
[401474410,1768253437938,-424.0,0.00015554,2]
[401474412,1768253437947,-424.0,0.00015609,2]
[401474415,1768253437957,-424.0,0.00015663,2]
[401474417,1768253437966,-424.0,0.00015718,2]
[401474419,1768253437976,-424.0,0.00015773,2]
[401474421,1768253437985,-424.0,0.00015828,2]
[401474423,1768253437994,-255.0,0.00015834,2]
[401474425,1768253438004,-424.0,0.00015883,2]
[401474427,1768253438013,-3126.13336877,0.00015906,2]
[401474429,1768253438023,-150.0,0.00015906,2]
[401474431,1768253438033,-424.0,0.00015937,2]
[401474433,1768253438042,-250.0,0.00015942,2]
[401474435,1768253438051,-210.89194601,0.00015947,2]
[401474437,1768253438060,-168.22848512,0.00015947,2]
[401474439,1768253438069,-6380.0,0.00015973,2]
[401474441,1768253438078,-627.19702958,0.0001599,2]
[401474443,1768253438088,-627.19702958,0.0001599,2]
[401474445,1768253438097,-424.0,0.00015992,2]
[401474447,1768253438106,-666.0,0.00015999,2]
[401474449,1768253438115,-2530410.09467946,0.00016,4]
[401474451,1768253438127,-2702.99998823,0.00016,4]
[401474453,1768253438137,-539.93551002,0.00016,4]
[401474456,1768253438152,-333.17989242,0.00016,4]
[401474458,1768253438162,-2492.28248588,0.00016,4]
[401474460,1768253438173,-685.88291327,0.00016,4]
[401474615,1768253439794,-151.0,0.00015889,2]
[401474616,1768253439804,-151.0,0.00015889,2]
[401474617,1768253439814,-286.41465866,0.00016,4]
[401474618,1768253439902,-25125.94440532,0.00016,4]
[401474619,1768253439911,-424.0,0.00016047,2]
[401474620,1768253439920,-164.41,0.00016048,2]
[401474621,1768253439930,-1680.0,0.00016081,2]
[401474622,1768253439939,-424.0,0.00016102,2]
[401474623,1768253439947,-3126.13336875,0.00016128,2]
[401474624,1768253439957,-620.02,0.00016154,2]
[401474625,1768253439967,-424.0,0.00016157,2]
[401474626,1768253439976,-150.0,0.00016186,2]
[401474627,1768253439984,-150.0,0.00016186,2]
[401474628,1768253439993,-150.0,0.00016186,2]
[401474629,1768253440003,-150.0,0.00016186,2]
[401474630,1768253440011,-150.0,0.000162,2]
[401474631,1768253440020,-150.0,0.000162,2]
[401474632,1768253440029,-150.0,0.000162,2]
[401474633,1768253440039,-150.0,0.000162,2]
[401474634,1768253440047,-150.0,0.000162,2]
[401474635,1768253440056,-150.0,0.000162,2]
[401474636,1768253440065,-150.0,0.000162,2]
[401474637,1768253440074,-150.0,0.000162,2]
[401474638,1768253440083,-150.0,0.000162,2]
[401474639,1768253440092,-150.0,0.000162,2]
[401474640,1768253440101,-150.0,0.000162,2]
[401474641,1768253440110,-150.0,0.000162,2]
[401474642,1768253440119,-424.0,0.00016211,2]
[401474643,1768253440129,-210.89194595,0.00016226,2]
[401474644,1768253440138,-150.0,0.00016241,2]
[401474645,1768253440147,-150.0,0.00016241,2]
[401474647,1768253440156,-150.0,0.00016241,2]
[401474648,1768253440165,-150.0,0.00016241,2]
[401474649,1768253440175,-424.0,0.00016266,2]
[401474650,1768253440184,-150.0,0.0001629,2]
[401474652,1768253440193,-200.0,0.00016296,2]
[401474653,1768253440202,-200.0,0.00016296,2]
[401474654,1768253440211,-150.0,0.00016296,2]
[401474655,1768253440220,-200.0,0.00016296,2]
[401474656,1768253440229,-150.0,0.000163,2]
[401474657,1768253440237,-150.0,0.00016312,2]
[401474658,1768253440246,-150.0,0.00016312,2]
[401474659,1768253440255,-424.0,0.00016321,2]
[401474660,1768253440264,-150.0,0.00016329,2]
[401474661,1768253440274,-30000.0,0.00016338,2]
[401474662,1768253440283,-3126.13336875,0.00016349,2]
[401474663,1768253440293,-150.0,0.0001635,2]
[401474664,1768253440302,-150.0,0.0001635,2]
[401474665,1768253440311,-150.0,0.0001635,2]
[401474666,1768253440320,-424.0,0.00016376,2]
[401474667,1768253440330,-150.0,0.0001638,2]
[401474668,1768253440339,-150.0,0.000164,2]
[401474669,1768253440348,-211.0,0.00016405,2]
[401474670,1768253440358,-150.0,0.00016425,2]
[401474671,1768253440368,-150.0,0.00016425,2]
[401474672,1768253440377,-424.0,0.0001643,2]
[401474673,1768253440386,-210.2736974,0.00016438,2]
[401474674,1768253440396,-15253.13,0.00016438,2]
[401474675,1768253440405,-151.0,0.00016438,2]
[401474676,1768253440414,-150.0,0.00016457,2]
[401474677,1768253440424,-150.0,0.0001647,2]
[401474678,1768253440433,-436.92481471,0.00016485,2]
[401474679,1768253440442,-150.0,0.000165,2]
[401474680,1768253440451,-150.0,0.000165,2]
[401474681,1768253440461,-150.0,0.000165,2]
[401474682,1768253440470,-210.89194595,0.00016505,2]
[401474683,1768253440479,-150.0,0.00016537,2]
[401474684,1768253440489,-150.0,0.00016537,2]
[401474685,1768253440499,-150.0,0.0001656,2]
[401474686,1768253440508,-150.0,0.0001656,2]
[401474687,1768253440518,-3126.13336875,0.00016571,2]
[401474688,1768253440526,-150.0,0.00016586,2]
[401474689,1768253440536,-150.0,0.000166,2]
[401474690,1768253440547,-150.0,0.0001665,2]
[401474691,1768253440556,-150.0,0.0001665,2]
[401474692,1768253440565,-150.0,0.0001665,2]
[401474693,1768253440575,-150.0,0.0001665,2]
[401474694,1768253440584,-150.0,0.0001665,2]
[401474695,1768253440593,-150.0,0.000167,2]
[401474696,1768253440602,-150.0,0.00016714,2]
[401474697,1768253440612,-150.0,0.0001674,2]
[401474698,1768253440621,-150.0,0.00016762,2]
[401474699,1768253440630,-150.0,0.00016762,2]
[401474700,1768253440640,-210.89194595,0.00016784,2]
[401474701,1768253440649,-3126.13336875,0.00016792,2]
[401474702,1768253440661,-150.0,0.000168,2]
[401474703,1768253440671,-150.0,0.000168,2]
[401474704,1768253440679,-150.0,0.000168,2]
[401474705,1768253440689,-150.0,0.0001683,2]
[401474706,1768253440699,-150.0,0.00016843,2]
[401474707,1768253440708,-150.0,0.00016875,2]
[401474708,1768253440717,-150.0,0.00016875,2]
[401474709,1768253440727,-150.0,0.000169,2]
[401474710,1768253440737,-632.86,0.00016917,2]
[401474711,1768253440747,-150.0,0.0001692,2]
[401474712,1768253440756,-150.0,0.0001692,2]
[401474713,1768253440765,-150.0,0.0001695,2]
[401474714,1768253440774,-150.0,0.0001695,2]
[401474715,1768253440784,-150.0,0.00016971,2]
[401474716,1768253440793,-152.06497503,0.00016973,2]
[401474717,1768253440802,-533.88981491,0.00016976,2]
[401474718,1768253440811,-500.0,0.00016976,2]
[401474719,1768253440821,-500.0,0.00016976,2]
[401474720,1768253440830,-500.0,0.00016976,2]
[401474721,1768253440840,-500.0,0.00016976,2]
[401474722,1768253440849,-500.0,0.00016976,2]
[401474723,1768253440860,-500.0,0.00016976,2]
[401474724,1768253440869,-500.0,0.00016976,2]
[401474725,1768253440879,-500.0,0.00016976,2]
[401474726,1768253440888,-500.0,0.00016976,2]
[401474727,1768253440898,-500.0,0.00016976,2]
[401474728,1768253440907,-500.0,0.00016976,2]
[401474729,1768253440916,-500.0,0.00016976,2]
[401474730,1768253440925,-500.0,0.00016976,2]
[401474731,1768253440935,-620.0,0.00016976,2]
[401474732,1768253440944,-300.0,0.00016985,2]
[401474733,1768253440953,-249.76041872,0.00016985,2]
[401474734,1768253440962,-51396.65,0.00016986,2]
[401474735,1768253440971,-150.0,0.00016987,2]
[401474736,1768253440980,-150.0,0.00016987,2]
[401474737,1768253440989,-150.0,0.00017,2]
[401474738,1768253440998,-250.0,0.00017,2]
[401474739,1768253441007,-225.13457576,0.00017,2]
[401474740,1768253441016,-150.0,0.0001701,2]
[401474741,1768253441026,-3126.13336875,0.00017014,2]
[401474742,1768253441035,-500.0,0.00017031,2]
[401474743,1768253441045,-500.0,0.00017031,2]
[401474744,1768253441054,-500.0,0.00017031,2]
[401474745,1768253441063,-391.13971577,0.00017031,2]
[401474746,1768253441073,-433.0,0.00017041,2]
[401474747,1768253441082,-661.95,0.00017041,2]
[401474748,1768253441091,-661.95,0.00017041,2]
[401474749,1768253441101,-661.95,0.00017041,2]
[401474750,1768253441110,-661.7,0.00017041,2]
[401474751,1768253441120,-164.41,0.00017051,2]
[401474752,1768253441129,-210.89194595,0.00017063,2]
[401474753,1768253441138,-166.96227274,0.00017073,2]
[401474754,1768253441148,-500.0,0.00017073,2]
[401474755,1768253441157,-500.0,0.00017073,2]
[401474756,1768253441166,-500.0,0.00017073,2]
[401474757,1768253441175,-500.0,0.00017073,2]
[401474758,1768253441184,-500.0,0.00017073,2]
[401474759,1768253441193,-503.00247421,0.00017073,2]
[401474760,1768253441202,-163.4155148,0.00017073,2]
[401474761,1768253441211,-500.32712274,0.00017073,2]
[401474762,1768253441220,-501.85422751,0.00017073,2]
[401474763,1768253441229,-500.0,0.00017073,2]
[401474764,1768253441238,-500.0,0.00017073,2]
[401474765,1768253441247,-500.0,0.00017073,2]
[401474766,1768253441256,-500.0,0.00017073,2]
[401474767,1768253441265,-500.0,0.00017073,2]
[401474768,1768253441275,-500.0,0.00017073,2]
[401474769,1768253441283,-500.0,0.00017073,2]
[401474770,1768253441292,-500.0,0.00017073,2]
[401474771,1768253441301,-500.0,0.00017073,2]
[401474772,1768253441311,-500.0,0.00017073,2]
[401474773,1768253441320,-500.0,0.00017073,2]
[401474774,1768253441329,-500.0,0.00017073,2]
[401474775,1768253441338,-500.0,0.00017073,2]
[401474776,1768253441347,-500.0,0.00017073,2]
[401474777,1768253441356,-500.0,0.00017073,2]
[401474778,1768253441365,-500.0,0.00017073,2]
[401474779,1768253441374,-169.17232811,0.00017073,2]
[401474780,1768253441384,-500.57959935,0.00017073,2]
[401474781,1768253441393,-500.0,0.00017073,2]
[401474782,1768253441402,-500.26791262,0.00017073,2]
[401474783,1768253441411,-500.0,0.00017073,2]
[401474784,1768253441422,-500.0,0.00017073,2]
[401474785,1768253441431,-500.0,0.00017073,2]
[401474786,1768253441440,-486.88056707,0.00017073,2]
[401474787,1768253441449,-162.59101262,0.00017073,2]
[401474788,1768253441458,-500.0,0.00017073,2]
[401474789,1768253441467,-500.0,0.00017073,2]
[401474790,1768253441476,-500.0,0.00017073,2]
[401474791,1768253441485,-500.0,0.00017073,2]
[401474792,1768253441494,-150.0,0.000171,2]
[401474793,1768253441503,-150.0,0.000171,2]
[401474794,1768253441512,-150.0,0.000171,2]
[401474795,1768253441521,-150.0,0.000171,2]
[401474796,1768253441530,-150.0,0.000171,2]
[401474797,1768253441539,-150.0,0.000171,2]
[401474798,1768253441549,-150.0,0.000171,2]
[401474799,1768253441558,-150.0,0.000171,2]
[401474800,1768253441567,-150.0,0.000171,2]
[401474801,1768253441576,-150.0,0.000171,2]
[401474802,1768253441585,-3240.0,0.00017173,2]
[401474803,1768253441594,-150.0,0.0001719,2]
[401474804,1768253441604,-150.0,0.000172,2]
[401474805,1768253441613,-150.0,0.00017212,2]
[401474806,1768253441623,-150.0,0.00017212,2]
[401474807,1768253441632,-741.51471293,0.00017215,2]
[401474808,1768253441641,-150.0,0.00017229,2]
[401474809,1768253441650,-3126.13336875,0.00017235,2]
[401474810,1768253441661,-150.0,0.0001725,2]
[401474811,1768253441671,-150.0,0.0001725,2]
[401474812,1768253441680,-1390.86303011,0.00017253,2]
[401474813,1768253441689,-505.0,0.00017271,2]
[401474814,1768253441698,-1267.0,0.00017271,2]
[401474815,1768253441708,-914.0,0.00017271,2]
[401474816,1768253441717,-1201.0,0.00017271,2]
[401474817,1768253441727,-2437.0,0.00017271,2]
[401474818,1768253441737,-1405.0,0.00017271,2]
[401474819,1768253441746,-4821.0,0.00017271,2]
[401474820,1768253441755,-150.0,0.0001728,2]
[401474821,1768253441764,-150.0,0.0001728,2]
[401474822,1768253441774,-150.0,0.000173,2]
[401474823,1768253441783,-2292.6,0.00017311,2]
[401474824,1768253441792,-1390.86303006,0.00017325,2]
[401474825,1768253441802,-150.0,0.00017325,2]
[401474826,1768253441811,-150.0,0.00017325,2]
[401474827,1768253441822,-210.89194595,0.00017342,2]
[401474828,1768253441831,-193.27,0.0001735,2]
[401474829,1768253441840,-1703.5534619,0.00017353,2]
[401474830,1768253441850,-2771.18346023,0.00017353,2]
[401474831,1768253441860,-3913.73811866,0.00017353,2]
[401474832,1768253441869,-5064.2856,0.00017353,2]
[401474833,1768253441879,-150.0,0.00017357,2]
[401474834,1768253441888,-150.0,0.0001737,2]
[401474835,1768253441897,-6157.84376205,0.00017379,2]
[401474836,1768253441907,-158.91779718,0.0001738,2]
[401474837,1768253441916,-1390.86303006,0.00017397,2]
[401474838,1768253441926,-150.0,0.000174,2]
[401474839,1768253441935,-150.0,0.000174,2]
[401474840,1768253441944,-150.0,0.000174,2]
[401474841,1768253441953,-200.0,0.00017404,2]
[401474842,1768253441962,-150.0,0.00017437,2]
[401474843,1768253441971,-150.0,0.00017437,2]
[401474844,1768253441980,-150.87,0.00017452,2]
[401474845,1768253441990,-3126.13336875,0.00017457,2]
[401474846,1768253441999,-173.24610897,0.0001746,2]
[401474847,1768253442008,-150.0,0.0001746,2]
[401474848,1768253442017,-1390.86303006,0.00017469,2]
[401474849,1768253442027,-150.0,0.00017486,2]
[401474850,1768253442037,-150.0,0.000175,2]
[401474851,1768253442046,-2000.0,0.000175,2]
[401474852,1768253442056,-1601.85016191,0.000175,2]
[401474853,1768253442065,-553.64373807,0.00017524,2]
[401474854,1768253442075,-500.0,0.00017539,2]
[401474855,1768253442085,-575.35243908,0.00017539,2]
[401474856,1768253442095,-500.0,0.00017539,2]
[401474857,1768253442105,-500.0,0.00017539,2]
[401474858,1768253442115,-300.0,0.00017539,2]
[401474859,1768253442125,-4854.0,0.0001754,2]
[401474860,1768253442134,-1390.86303006,0.00017541,2]
[401474861,1768253442143,-150.0,0.0001755,2]
[401474862,1768253442152,-150.0,0.0001755,2]
[401474863,1768253442162,-150.0,0.0001755,2]
[401474864,1768253442171,-150.0,0.0001755,2]
[401474865,1768253442181,-150.0,0.0001755,2]
[401474866,1768253442190,-173.24610893,0.0001757,2]
[401474867,1768253442200,-150.0,0.00017585,2]
[401474868,1768253442209,-150.0,0.000176,2]
[401474869,1768253442219,-2690.389,0.00017611,2]
[401474870,1768253442228,-165.491,0.00017611,2]
[401474871,1768253442237,-156.36,0.00017611,2]
[401474872,1768253442246,-1390.86303006,0.00017612,2]
[401474873,1768253442257,-150.0,0.00017614,2]
[401474874,1768253442266,-500.70457439,0.00017621,2]
[401474875,1768253442275,-1000.0,0.00017621,2]
[401474876,1768253442284,-749.39394419,0.00017621,2]
[401474877,1768253442293,-987.57806594,0.00017621,2]
[401474878,1768253442303,-1000.0,0.00017621,2]
[401474879,1768253442313,-796.82794759,0.00017621,2]
[401474880,1768253442322,-1000.0,0.00017621,2]
[401474881,1768253442332,-237.74478366,0.00017621,2]
[401474882,1768253442342,-500.0,0.00017621,2]
[401474883,1768253442351,-1031.96318574,0.00017621,2]
[401474884,1768253442361,-1010.77976475,0.00017621,2]
[401474885,1768253442371,-540.4577012,0.00017621,2]
[401474886,1768253442381,-1000.95743752,0.00017621,2]
[401474887,1768253442391,-500.0,0.00017621,2]
[401474888,1768253442401,-500.0,0.00017621,2]
[401474889,1768253442410,-1031.53854137,0.00017621,2]
[401474890,1768253442419,-800.28905191,0.00017621,2]
[401474891,1768253442429,-1000.0,0.00017621,2]
[401474892,1768253442670,-1000.0,0.00017621,2]
[401474893,1768253442684,-500.0,0.00017621,2]
[401474894,1768253442694,-648.07606732,0.00017621,2]
[401474895,1768253442705,-500.0,0.00017621,2]
[401474896,1768253442714,-500.0,0.00017621,2]
[401474897,1768253442724,-500.0,0.00017621,2]
[401474898,1768253442734,-500.38035534,0.00017621,2]
[401474899,1768253442743,-1000.0,0.00017621,2]
[401474900,1768253442752,-500.84213941,0.00017621,2]
[401474901,1768253442761,-210.89194595,0.00017621,2]
[401474902,1768253442771,-150.0,0.0001764,2]
[401474903,1768253442780,-150.0,0.0001764,2]
[401474904,1768253442790,-6206.09984302,0.0001764,2]
[401474905,1768253442799,-150.0,0.00017662,2]
[401474906,1768253442809,-150.0,0.00017662,2]
[401474907,1768253442818,-3126.13336875,0.00017678,2]
[401474908,1768253442827,-173.24610893,0.0001768,2]
[401474909,1768253442837,-834.0,0.0001768,2]
[401474910,1768253442846,-1390.86303006,0.00017684,2]
[401474911,1768253442856,-2351.0,0.00017689,2]
[401474912,1768253442865,-150.0,0.000177,2]
[401474913,1768253442875,-150.0,0.000177,2]
[401474914,1768253442884,-5800.0,0.000177,2]
[401474915,1768253442894,-150.0,0.000177,2]
[401474916,1768253442903,-780.28325037,0.000177,2]
[401474917,1768253442912,-403.0,0.000177,5]
[401474918,1768253442921,-191.0,0.00017718,2]
[401474919,1768253442931,-150.0,0.0001773,2]
[401474920,1768253442940,-150.0,0.00017743,2]
[401474921,1768253442950,-1390.86303006,0.00017756,2]
[401474922,1768253442959,-150.0,0.00017775,2]
[401474923,1768253442968,-150.0,0.00017775,2]
[401474924,1768253442977,-228.11,0.00017783,2]
[401474925,1768253442987,-173.24610893,0.0001779,2]
[401474926,1768253442996,-150.0,0.0001779,2]
[401474928,1768253443005,-150.0,0.000178,2]
[401474929,1768253443014,-213.95738511,0.00017807,2]
[401474931,1768253443024,-174.30171844,0.00017808,2]
[401474932,1768253443033,-150.0,0.0001782,2]
[401474933,1768253443042,-155.82564,0.0001782,2]
[401474934,1768253443052,-155.82564,0.0001782,2]
[401474935,1768253443061,-1390.86303006,0.00017828,2]
[401474936,1768253443071,-1000.0,0.00017849,2]
[401474937,1768253443080,-150.0,0.0001785,2]
[401474938,1768253443089,-150.0,0.0001785,2]
[401474940,1768253443098,-257.7,0.00017855,2]
[401474942,1768253443107,-200.0,0.00017856,2]
[401474943,1768253443116,-150.0,0.00017871,2]
[401474944,1768253443126,-25000.0,0.00017882,3]
[401474945,1768253443136,-150.0,0.00017887,2]
[401474946,1768253443145,-150.0,0.00017887,2]
[401474947,1768253443155,-25000.0,0.00017891,3]
[401474948,1768253443164,-150.0,0.00017898,2]
[401474949,1768253443173,-300.0,0.00017899,2]
[401474950,1768253443182,-1000.0,0.000179,2]